bitfinex/quotes_BTCUSD_20250423
["timestamp","ask_amount","ask_price","bid_price","bid_amount"]
[1745437890384,0.04669276,93386.0,93384.0,0.0459]
[1745437890592,0.02669169,93386.0,93384.0,0.26006824]
[1745437891020,0.009,93386.0,93384.0,0.26006824]
[1745437891252,0.009,93386.0,93384.0,0.0459]
[1745437891460,0.004,93386.0,93384.0,0.0459]
[1745437891665,0.004,93386.0,93384.0,0.26006825]
[1745437891881,0.005,93386.0,93384.0,0.26006825]
[1745437892357,0.00796002,93403.0,93384.0,0.26006825]
[1745437892590,0.01988104,93394.0,93384.0,0.26006825]
[1745437892818,0.002,93386.0,93384.0,0.26006825]
[1745437893045,0.01988104,93393.0,93384.0,0.0459]
[1745437893278,0.002,93386.0,93384.0,0.0459]
[1745437893511,0.01988104,93393.0,93384.0,0.26006903]
[1745437893763,0.00994036,93402.0,93384.0,0.26006903]
[1745437893976,0.00994036,93392.0,93385.0,0.21459158]
[1745437894195,0.00994036,93392.0,93385.0,0.000425]
[1745437894871,0.00994036,93391.0,93385.0,0.000425]
[1745437895494,0.00994036,93391.0,93386.0,0.21416486]
[1745437895704,0.00994036,93391.0,93390.0,0.21415569]
[1745437895924,0.00994036,93391.0,93388.0,0.21415805]
[1745437896124,0.01094036,93391.0,93389.0,0.21415797]
[1745437896333,0.01094036,93391.0,93390.0,0.21415569]
[1745437896541,0.00994036,93391.0,93390.0,0.21415569]
[1745437896740,0.01094036,93391.0,93390.0,0.21415569]
[1745437896951,0.01094036,93391.0,93385.0,0.01113335]
[1745437897157,0.001,93391.0,93385.0,0.000425]
[1745437897364,0.002,93391.0,93386.0,0.01070824]
[1745437897619,0.002,93391.0,93385.0,0.01113335]
[1745437897839,0.002,93391.0,93386.0,0.01070824]
[1745437898033,0.002,93391.0,93388.0,0.21416027]
[1745437898282,0.003,93391.0,93386.0,0.21416486]
[1745437898716,0.00807004,93412.0,93385.0,0.000425]
[1745437898717,0.10840762,93407.0,93385.0,0.000425]
[1745437898929,0.34,93390.0,93385.0,0.000425]
[1745437899138,0.44689014,93390.0,93385.0,0.000425]
[1745437899565,0.01756653,93389.0,93385.0,0.000425]
[1745437899742,0.34,93388.0,93385.0,0.000425]
[1745437899993,0.10689014,93387.0,93385.0,0.000425]
[1745437900198,0.12678835,93387.0,93385.0,0.000425]
[1745437900381,0.00761508,93386.0,93385.0,0.000425]
[1745437900582,0.03746474,93386.0,93385.0,0.000425]
[1745437902908,0.03846474,93386.0,93385.0,0.000425]
[1745437906722,0.48535488,93386.0,93385.0,0.000425]
[1745437906925,0.14535488,93386.0,93385.0,0.000425]
[1745437907135,0.14834989,93386.0,93385.0,0.000425]
[1745437907338,0.15355439,93386.0,93385.0,0.000425]
[1745437907762,0.16101859,93386.0,93385.0,0.000425]
[1745437908170,0.16101859,93386.0,93373.0,0.000425]
[1745437908402,0.34,93382.0,93373.0,0.000425]
[1745437908583,0.34,93380.0,93373.0,0.000425]
[1745437908776,0.34,93378.0,93373.0,0.000425]
[1745437909023,0.34,93376.0,93373.0,0.000425]
[1745437909220,0.1367398,93375.0,93373.0,0.000425]
[1745437909420,0.00754678,93374.0,93373.0,0.002425]
[1745437909628,0.13433513,93374.0,93373.0,0.00047134]
[1745437909962,0.13433513,93374.0,93373.0,0.00247134]
[1745437910096,0.14428658,93374.0,93373.0,0.00347134]
[1745437910299,0.15175078,93374.0,93373.0,0.00347134]
[1745437910728,0.15175078,93374.0,93373.0,0.00047134]
[1745437910950,0.15275078,93374.0,93373.0,0.00047134]
[1745437911524,0.15375078,93374.0,93373.0,0.00047134]
[1745437911726,0.15275078,93374.0,93373.0,0.00047134]
[1745437912304,0.15375078,93374.0,93373.0,0.00047134]
[1745437919874,0.14628658,93374.0,93373.0,0.00047134]
[1745437920350,0.15375078,93374.0,93373.0,0.00047134]
[1745437920581,0.49674579,93374.0,93373.0,0.00047134]
[1745437920789,0.49375078,93374.0,93373.0,0.00047134]
[1745437922945,0.48628658,93374.0,93373.0,0.00047134]
[1745437924579,0.49375078,93374.0,93373.0,0.00047134]
[1745437924706,0.49375078,93374.0,93367.0,0.0004248]
[1745437924928,0.34,93372.0,93367.0,0.00050928]
[1745437925134,0.34,93370.0,93367.0,0.00050928]
[1745437925409,0.34,93368.0,93367.0,0.00050928]
[1745437925624,0.45436814,93368.0,93367.0,0.00050928]
[1745437925837,0.47426635,93368.0,93367.0,0.00050928]
[1745437926049,0.48173055,93368.0,93367.0,0.00050928]
[1745437926267,0.491682,93368.0,93367.0,0.00050928]
[1745437926482,0.4842178,93368.0,93367.0,0.00050928]
[1745437926690,0.4842178,93368.0,93351.0,0.21666983]
[1745437926895,0.34,93366.0,93351.0,0.21666983]
[1745437927102,0.34,93364.0,93351.0,0.21666983]
[1745437927318,0.10689014,93363.0,93351.0,0.21666983]
[1745437927543,0.01989821,93362.0,93351.0,0.21666983]
[1745437927769,0.10689014,93361.0,93353.0,0.0497]
[1745437928169,0.007478,93360.0,93353.0,0.0497]
[1745437928375,0.02737621,93360.0,93354.0,0.0024251]
[1745437928580,0.02737621,93360.0,93354.0,0.0004251]
[1745437928792,0.01989821,93359.0,93354.0,0.0054251]
[1745437929003,0.01989821,93359.0,93354.0,0.0034251]
[1745437929209,0.02984966,93358.0,93354.0,0.0004251]
[1745437929438,0.01989821,93357.0,93354.0,0.0024251]
[1745437929562,0.02737621,93357.0,93354.0,0.0034251]
[1745437929987,0.02984966,93356.0,93354.0,0.0024251]
[1745437930212,0.01989821,93355.0,93354.0,0.0959]
[1745437930431,0.01989821,93355.0,93354.0,0.42302605]
[1745437930649,0.01989821,93355.0,93354.0,0.42002705]
[1745437930861,0.02984966,93355.0,93354.0,0.42002705]
[1745437931073,0.02984966,93355.0,93354.0,0.52691719]
[1745437931301,0.02984966,93355.0,93354.0,0.61279471]
[1745437931525,0.02984966,93355.0,93354.0,0.61179471]
[1745437931799,0.02984966,93355.0,93354.0,0.60979471]
[1745437932034,0.0074642,93382.0,93379.0,0.0919]
[1745437932272,0.01533023,93382.0,93380.0,0.00299832]
[1745437932531,0.0074642,93406.0,93384.0,0.22487763]
[1745437932777,0.10689014,93405.0,93381.0,0.01070881]
[1745437932987,0.10689014,93405.0,93383.0,0.22487921]
[1745437933209,0.34573745,93404.0,93384.0,0.05395147]
[1745437933428,0.34,93402.0,93384.0,0.21416945]
[1745437933644,0.34,93400.0,93384.0,0.21416945]
[1745437933781,0.34,93400.0,93383.0,0.01070858]
[1745437934180,0.01320165,93399.0,93384.0,0.21416945]
[1745437934378,0.01320165,93399.0,93383.0,0.22487835]
[1745437934379,0.01320165,93399.0,93383.0,0.21416977]
[1745437935020,0.01320165,93399.0,93384.0,0.02515635]
[1745437935241,0.0074642,93398.0,93384.0,0.02515635]
[1745437935447,0.0074642,93398.0,93394.0,0.21414424]
[1745437935719,0.002,93399.0,93396.0,0.2141412]
[1745437935937,0.002,93399.0,93394.0,0.10360732]
[1745437936155,0.003,93399.0,93395.0,0.01070721]
[1745437936376,0.003,93399.0,93396.0,0.22484771]
[1745437936596,0.003,93399.0,93395.0,0.22485062]
[1745437937005,0.003,93399.0,93394.0,0.0929]
[1745437937277,0.00783074,93406.0,93394.0,0.0929]
[1745437937518,0.002,93398.0,93394.0,0.0929]
[1745437937722,0.00013895,93407.0,93394.0,0.0929]
[1745437937925,0.002,93399.0,93394.0,0.0929]
[1745437938704,0.002,93399.0,93394.0,0.0479]
[1745437938928,0.00013895,93407.0,93394.0,0.0479]
[1745437939127,0.34,93405.0,93394.0,0.0479]
[1745437939351,0.002,93399.0,93394.0,0.0479]
[1745437939761,0.00299501,93404.0,93389.0,0.08587752]
[1745437939953,0.00299501,93404.0,93387.0,0.045]
[1745437939954,0.0050307,93398.0,93387.0,0.045]
[1745437940169,0.00299501,93397.0,93387.0,0.045]
[1745437940385,0.0050307,93397.0,93387.0,0.05570812]
[1745437940648,0.0050307,93397.0,93387.0,0.045]
[1745437940856,0.003,93399.0,93387.0,0.045]
[1745437941040,0.00514388,93396.0,93387.0,0.045]
[1745437941247,0.10689014,93403.0,93387.0,0.045]
[1745437941469,0.001,93397.0,93387.0,0.045]
[1745437941677,0.10689014,93403.0,93387.0,0.045]
[1745437941678,0.00514388,93402.0,93387.0,0.045]
[1745437941899,0.001,93397.0,93387.0,0.045]
[1745437942307,0.00514388,93396.0,93387.0,0.045]
[1745437942524,0.10689014,93401.0,93387.0,0.045]
[1745437942739,0.00514388,93395.0,93387.0,0.045]
[1745437942940,0.10689014,93401.0,93387.0,0.045]
[1745437943164,0.00514388,93394.0,93387.0,0.045]
[1745437943548,0.001,93397.0,93387.0,0.045]
[1745437943998,0.002,93397.0,93387.0,0.25916248]
[1745437944231,0.01994789,93396.0,93387.0,0.25916248]
[1745437944470,0.001,93394.0,93387.0,0.045]
[1745437944648,0.001,93394.0,93390.0,0.01070778]
[1745437944857,0.01994789,93393.0,93387.0,0.045]
[1745437945064,0.01994789,93392.0,93389.0,0.21415789]
[1745437945268,0.01994789,93392.0,93390.0,0.21415424]
[1745437945480,0.01994789,93391.0,93390.0,0.21415424]
[1745437945881,0.02992148,93391.0,93390.0,0.21415424]
[1745437946090,0.02992148,93391.0,93388.0,0.21415779]
[1745437946504,0.02992148,93391.0,93389.0,0.21415732]
[1745437946733,0.01994789,93390.0,93389.0,0.21415732]
[1745437947035,0.02992148,93390.0,93389.0,0.21415732]
[1745437949279,0.03192148,93390.0,93389.0,0.2377865]
[1745437949493,0.03192148,93390.0,93389.0,0.21415732]
[1745437950121,0.03192148,93390.0,93389.0,0.26005732]
[1745437950549,0.01197359,93390.0,93389.0,0.26005732]
[1745437950842,0.00997359,93390.0,93389.0,0.26005732]
[1745437951061,0.01097359,93390.0,93389.0,0.36694746]
[1745437951743,0.00997359,93390.0,93389.0,0.36694746]
[1745437951966,0.01197359,93390.0,93389.0,0.36694746]
[1745437952383,0.01097359,93390.0,93389.0,0.36694746]
[1745437952591,0.01197359,93390.0,93389.0,0.36694746]
[1745437952820,0.01197359,93390.0,93389.0,0.26005732]
[1745437953288,0.01097359,93390.0,93389.0,0.26005732]
[1745437953502,0.01197359,93390.0,93389.0,0.26005732]
[1745437953692,0.01097359,93390.0,93389.0,0.26005732]
[1745437953912,0.03193072,93390.0,93389.0,0.26005732]
[1745437954121,0.03193072,93390.0,93389.0,0.36694746]
[1745437954837,0.03093072,93390.0,93389.0,0.26005732]
[1745437955074,0.02993072,93390.0,93389.0,0.26005732]
[1745437955259,0.03093072,93390.0,93389.0,0.26005732]
[1745437956852,0.03193072,93390.0,93389.0,0.26005732]
[1745437957455,0.03093072,93390.0,93389.0,0.26005732]
[1745437957622,0.03193072,93390.0,93389.0,0.26005732]
[1745437959685,0.03193072,93390.0,93389.0,0.36694746]
[1745437960537,0.03093072,93390.0,93389.0,0.56071512]
[1745437960735,0.03193072,93390.0,93389.0,0.62075597]
[1745437961156,0.03093072,93390.0,93389.0,0.62075597]
[1745437961344,0.002,93390.0,93389.0,0.62075597]
[1745437961583,0.0074642,93420.0,93406.0,0.214119]
[1745437961788,0.0074642,93419.0,93406.0,0.214119]
[1745437962196,0.02804527,93407.0,93406.0,0.214119]
[1745437962592,0.03805484,93407.0,93406.0,0.214119]
[1745437962927,0.04005484,93407.0,93406.0,0.214119]
[1745437964111,0.04105484,93407.0,93406.0,0.214119]
[1745437964346,0.04305484,93407.0,93404.0,0.19283752]
[1745437964562,0.00299501,93406.0,93404.0,0.19283752]
[1745437964797,0.01747377,93405.0,93404.0,0.19283752]
[1745437965012,0.03749503,93405.0,93404.0,0.19283752]
[1745437965276,0.04143805,93405.0,93404.0,0.19283752]
[1745437965941,0.04343805,93405.0,93404.0,0.19283752]
[1745437966450,0.04343805,93405.0,93404.0,0.10696]
[1745437966851,0.04888426,93405.0,93404.0,0.10696]
[1745437967683,0.05188426,93405.0,93404.0,0.10696]
[1745437968503,0.04643805,93405.0,93404.0,0.10696]
[1745437971359,0.04643805,93405.0,93391.0,0.30003052]
[1745437971578,0.04249503,93405.0,93391.0,0.30003052]
[1745437971770,0.02002126,93404.0,93391.0,0.08587752]
[1745437971984,0.01000957,93403.0,93391.0,0.08587752]
[1745437972348,0.02002126,93402.0,93393.0,0.214148]
[1745437972543,0.0074642,93401.0,93393.0,0.214148]
[1745437972755,0.03003083,93400.0,93392.0,0.21415102]
[1745437972966,0.03003083,93400.0,93393.0,0.21414818]
[1745437973167,0.03003083,93400.0,93392.0,0.21415102]
[1745437973498,0.02748546,93399.0,93391.0,0.08687752]
[1745437973710,0.03749503,93399.0,93394.0,0.21414442]
[1745437973922,0.02002126,93398.0,93394.0,0.21414442]
[1745437974125,0.02002126,93398.0,93391.0,0.08687752]
[1745437974126,0.02748546,93398.0,93391.0,0.001]
[1745437974304,0.02399872,93397.0,93391.0,0.21415265]
[1745437974538,0.01000957,93396.0,93393.0,0.001]
[1745437974750,0.0074642,93395.0,93393.0,0.001]
[1745437974896,0.0074642,93395.0,93392.0,0.21415078]
[1745437974897,0.02002126,93394.0,93392.0,0.21415078]
[1745437975302,0.02002126,93393.0,93390.0,0.21415399]
[1745437975533,0.02002126,93393.0,93392.0,0.2141511]
[1745437976135,0.03002639,93393.0,93391.0,0.001]
[1745437976349,0.02002126,93392.0,93391.0,0.001]
[1745437976572,0.02002126,93392.0,93390.0,0.21415375]
[1745437976800,0.02002126,93391.0,93390.0,0.21415375]
[1745437977005,0.03002639,93391.0,93390.0,0.21415375]
[1745437977783,0.03002639,93391.0,93390.0,0.21515375]
[1745437979759,0.03002639,93391.0,93390.0,0.21415375]
[1745437979929,0.03002639,93391.0,93390.0,0.21515375]
[1745437980304,0.03002639,93391.0,93390.0,0.31088244]
[1745437980669,0.03002639,93391.0,93390.0,0.21515375]
[1745437981491,0.03002639,93391.0,93390.0,0.31335375]
[1745437981818,0.01000513,93391.0,93390.0,0.96862226]
[1745437982569,0.00802401,93407.0,93406.0,0.214119]
[1745437982792,0.00802401,93407.0,93406.0,0.312319]
[1745437983001,0.02802715,93407.0,93406.0,0.312319]
[1745437983211,0.02014209,93407.0,93406.0,0.312319]
[1745437983580,0.03014411,93407.0,93406.0,0.312319]
[1745437983791,0.01214097,93407.0,93406.0,0.312319]
[1745437983991,0.01114097,93407.0,93406.0,0.312319]
[1745437984201,0.01014097,93407.0,93406.0,0.3471991]
[1745437984409,0.01114097,93407.0,93406.0,0.312319]
[1745437984614,0.01214097,93407.0,93406.0,0.419279]
[1745437985383,0.03212747,93407.0,93406.0,0.419279]
[1745437985601,0.03212747,93407.0,93406.0,0.369779]
[1745437986897,0.03212747,93407.0,93406.0,0.45565652]
[1745437987769,0.03212747,93407.0,93406.0,0.24153752]
[1745437987914,0.03212747,93407.0,93406.0,0.19283752]
[1745437988823,0.03212747,93407.0,93406.0,0.40695652]
[1745437993711,0.03212747,93407.0,93406.0,0.19283752]
[1745437993882,0.03212747,93407.0,93406.0,0.40695652]
[1745438000597,0.03212747,93407.0,93406.0,0.19283752]
[1745438000788,0.03212747,93407.0,93406.0,0.40695652]
[1745438001201,0.03212747,93407.0,93406.0,0.29999652]
[1745438004352,0.03212747,93407.0,93406.0,0.08587752]
[1745438004922,0.03212747,93407.0,93406.0,0.29999652]
[1745438010472,0.03212747,93407.0,93406.0,0.5632768]
[1745438010681,0.00750385,93422.0,93406.0,0.5632768]
[1745438010682,0.00750385,93422.0,93421.0,0.31218462]
[1745438010929,0.00750385,93422.0,93421.0,0.52191476]
[1745438011159,0.0008504,93428.0,93427.0,0.35454085]
[1745438011451,0.0008504,93440.0,93428.0,0.45264085]
[1745438011452,1e-08,93429.0,93428.0,0.45264085]
[1745438011661,0.0008498,93436.0,93434.0,0.01454085]
[1745438011875,0.0008504,93440.0,93438.0,0.01454085]
[1745438012104,0.0008504,93440.0,93439.0,0.43507029]
[1745438012327,0.0008504,93440.0,93439.0,0.43207437]
[1745438012540,0.0008504,93440.0,93439.0,0.48948931]
[1745438013540,1e-08,93443.0,93442.0,0.26163651]
[1745438013760,0.0641208,93478.0,93453.0,0.22470959]
[1745438014026,0.06580527,93459.0,93458.0,0.21399987]
[1745438014256,0.06580527,93459.0,93458.0,0.40268018]
[1745438014713,0.06580527,93459.0,93458.0,0.31683987]
[1745438015781,0.00046382,93459.0,93458.0,0.31683987]
[1745438017128,0.00046382,93459.0,93458.0,0.31783987]
[1745438017519,0.00046382,93459.0,93458.0,0.31683987]
[1745438017834,0.00046382,93459.0,93458.0,0.31783987]
[1745438018256,0.00046382,93459.0,93458.0,0.31683987]
[1745438018691,0.00046382,93459.0,93458.0,0.21499987]
[1745438018898,0.00046382,93459.0,93458.0,0.31495987]
[1745438019097,0.00046382,93459.0,93458.0,0.36870992]
[1745438020082,0.00046382,93459.0,93458.0,0.44235033]
[1745438020291,0.00046382,93459.0,93458.0,0.36870992]
[1745438020830,0.00046382,93459.0,93458.0,0.36770992]
[1745438021205,0.00046382,93459.0,93458.0,0.36870992]
[1745438021592,0.00046382,93459.0,93458.0,0.36770992]
[1745438021796,0.00046382,93459.0,93458.0,0.36870992]
[1745438027013,0.00046382,93459.0,93458.0,0.15471005]
[1745438027209,0.00046382,93459.0,93458.0,0.36870992]
[1745438030609,0.0008498,93467.0,93466.0,0.26308155]
[1745438030856,0.0008498,93497.0,93478.0,0.21395408]
[1745438031077,0.0008498,93497.0,93483.0,0.31044264]
[1745438031078,1e-08,93484.0,93483.0,0.31044264]
[1745438031296,1e-08,93484.0,93483.0,0.54523836]
[1745438031519,1e-08,93484.0,93483.0,0.51729278]
[1745438031520,9.929e-05,93484.0,93483.0,0.51729278]
[1745438032792,9.929e-05,93484.0,93483.0,0.51929278]
[1745438033251,9.929e-05,93484.0,93483.0,0.52129278]
[1745438033898,9.929e-05,93484.0,93483.0,0.51929278]
[1745438034651,9.929e-05,93484.0,93483.0,0.62618292]
[1745438034856,9.929e-05,93484.0,93483.0,0.62818292]
[1745438035303,9.929e-05,93484.0,93483.0,0.64072377]
[1745438035507,0.0008498,93497.0,93483.0,0.64072377]
[1745438035508,0.0008498,93497.0,93486.0,0.21393577]
[1745438035696,0.0008498,93497.0,93494.0,0.01069587]
[1745438035943,0.0008498,93497.0,93496.0,0.21391289]
[1745438036778,0.0008498,93497.0,93496.0,0.26766294]
[1745438038425,0.0008498,93497.0,93496.0,0.31386294]
[1745438038648,0.0028498,93497.0,93496.0,0.36196294]
[1745438038866,0.0028498,93497.0,93496.0,0.46885308]
[1745438039123,0.0028498,93497.0,93496.0,0.57574322]
[1745438039302,0.002,93509.0,93508.0,0.21388544]
[1745438039499,0.002,93509.0,93508.0,0.36755549]
[1745438039909,0.002,93509.0,93508.0,0.47444563]
[1745438040111,0.002,93509.0,93508.0,0.62753577]
[1745438040308,0.004,93509.0,93508.0,0.62753577]
[1745438040523,0.004,93509.0,93508.0,0.52064563]
[1745438040923,0.004,93509.0,93508.0,0.46882563]
[1745438041143,0.004,93509.0,93508.0,0.56874563]
[1745438041700,0.002,93509.0,93508.0,0.56874563]
[1745438041907,0.002,93509.0,93508.0,0.56974563]
[1745438042110,0.002,93509.0,93508.0,0.67663577]
[1745438042528,0.002,93509.0,93508.0,0.67563577]
[1745438042778,0.002,93509.0,93508.0,0.67663577]
[1745438042976,0.002,93509.0,93508.0,0.56974563]
[1745438044217,0.00994921,93522.0,93508.0,0.56974563]
[1745438044218,0.00994921,93522.0,93521.0,0.21385571]
[1745438044414,0.00994921,93522.0,93521.0,0.36752576]
[1745438044555,0.01008819,93522.0,93521.0,0.36752576]
[1745438044757,0.00013898,93522.0,93521.0,0.36752576]
[1745438045837,0.00013898,93522.0,93521.0,0.26760576]
[1745438046062,0.00013898,93522.0,93521.0,0.36752576]
[1745438046215,0.00213898,93522.0,93521.0,0.36752576]
[1745438046417,0.00013898,93522.0,93521.0,0.36752576]
[1745438047420,0.01007837,93522.0,93521.0,0.36752576]
[1745438048856,0.00013898,93522.0,93521.0,0.36752576]
[1745438050399,0.00013898,93522.0,93521.0,0.05375005]
[1745438050400,0.04663898,93522.0,93521.0,0.05375005]
[1745438050844,0.05657869,93522.0,93521.0,0.26760576]
[1745438051055,0.16971824,93522.0,93521.0,0.05375005]
[1745438051464,0.05996407,93522.0,93521.0,0.26760576]
[1745438051708,0.01546407,93522.0,93521.0,0.26760576]
[1745438052084,0.01107869,93522.0,93521.0,0.26760576]
[1745438052620,0.01207869,93522.0,93521.0,0.26760576]
[1745438053035,0.01407869,93522.0,93521.0,0.26760576]
[1745438053187,0.01207869,93522.0,93521.0,0.26760576]
[1745438053621,0.01407869,93522.0,93521.0,0.26760576]
[1745438053867,0.00113898,93522.0,93521.0,0.26760576]
[1745438054076,0.00313898,93522.0,93521.0,0.26760576]
[1745438054287,0.00613898,93522.0,93521.0,0.26760576]
[1745438054495,0.00313898,93522.0,93521.0,0.26760576]
[1745438054702,0.00413898,93522.0,93521.0,0.26760576]
[1745438054911,0.00713898,93522.0,93521.0,0.26760576]
[1745438055989,0.01709029,93522.0,93521.0,0.26760576]
[1745438064631,0.01709029,93522.0,93521.0,0.35028676]
[1745438065092,0.01709029,93522.0,93521.0,0.31730576]
[1745438065335,0.01709029,93522.0,93521.0,0.36230576]
[1745438066017,0.01409029,93522.0,93521.0,0.36230576]
[1745438066255,0.01109029,93522.0,93521.0,0.36230576]
[1745438066476,0.00113898,93522.0,93521.0,0.36230576]
[1745438067697,0.00113898,93522.0,93521.0,0.45552606]
[1745438067898,0.00113898,93522.0,93521.0,0.36230576]
[1745438069561,0.00113898,93522.0,93521.0,0.26760576]
[1745438070805,0.00013898,93522.0,93521.0,0.26760576]
[1745438071206,0.01014446,93522.0,93521.0,0.26760576]
[1745438072310,0.01014446,93522.0,93521.0,0.4195959]
[1745438072511,0.00750388,93534.0,93528.0,0.26963168]
[1745438072733,0.00750388,93534.0,93533.0,0.21382827]
[1745438072939,0.00750388,93534.0,93533.0,0.26422133]
[1745438073161,0.0004246,93535.0,93534.0,0.21382598]
[1745438073363,0.0004246,93535.0,93534.0,0.42760626]
[1745438074309,0.0004246,93560.0,93548.0,0.21379398]
[1745438074517,0.0004246,93560.0,93548.0,0.36694403]
[1745438074724,0.0004246,93560.0,93548.0,0.70694403]
[1745438075862,0.0004246,93560.0,93548.0,0.36694403]
[1745438076330,0.0004246,93560.0,93548.0,0.4699164]
[1745438076533,0.0004246,93560.0,93548.0,0.57680654]
[1745438076736,0.0004246,93560.0,93548.0,0.68734739]
[1745438076951,0.0004246,93560.0,93548.0,0.31704403]
[1745438077130,0.0004246,93560.0,93548.0,0.36690403]
[1745438077590,0.003,93549.0,93548.0,0.36690403]
[1745438077807,0.10989014,93549.0,93534.0,0.001]
[1745438078020,0.1209592,93548.0,93534.0,0.001]
[1745438078185,0.12215653,93548.0,93534.0,0.001]
[1745438078412,0.12215653,93548.0,93542.0,0.21380577]
[1745438078612,0.12215653,93548.0,93541.0,0.21380963]
[1745438078755,0.12215653,93548.0,93534.0,0.001]
[1745438078933,0.03840115,93547.0,93534.0,0.001]
[1745438079131,0.10689014,93546.0,93545.0,0.21380084]
[1745438079391,0.11101923,93546.0,93545.0,0.21380084]
[1745438080374,0.00712909,93546.0,93545.0,0.21380084]
[1745438080574,0.003,93546.0,93545.0,0.21380084]
[1745438081183,0.003,93546.0,93545.0,0.33421778]
[1745438081452,0.003,93546.0,93545.0,0.3776249]
[1745438081655,0.003,93546.0,93545.0,0.31134562]
[1745438082039,0.005,93546.0,93545.0,0.31134562]
[1745438082445,0.003,93546.0,93545.0,0.31134562]
[1745438082857,0.002,93549.0,93548.0,0.21379398]
[1745438083686,0.002,93549.0,93548.0,0.21963876]
[1745438083870,0.002,93549.0,93548.0,0.31955876]
[1745438085945,0.004,93549.0,93548.0,0.31955876]
[1745438086159,0.004,93549.0,93548.0,0.21963876]
[1745438086372,0.002,93549.0,93548.0,0.31955876]
[1745438086575,0.005,93549.0,93548.0,0.31955876]
[1745438086780,0.004,93549.0,93548.0,0.31955876]
[1745438087197,0.007,93549.0,93548.0,0.31955876]
[1745438088331,0.37088712,93570.0,93548.0,0.31955648]
[1745438088532,0.10689014,93569.0,93563.0,0.21375913]
[1745438088731,0.11201817,93569.0,93563.0,0.21375913]
[1745438088945,0.11201817,93569.0,93562.0,0.21376189]
[1745438089175,0.11201817,93569.0,93565.0,0.21375302]
[1745438089385,0.00512803,93569.0,93566.0,0.21375278]
[1745438089589,0.00512803,93569.0,93564.0,0.21375643]
[1745438089838,0.001,93569.0,93563.0,0.21375534]
[1745438090111,0.10789014,93569.0,93564.0,0.21375714]
[1745438090342,0.11852781,93568.0,93549.0,0.09992]
[1745438090559,0.00299501,93567.0,93555.0,0.21377786]
[1745438090793,0.00299501,93567.0,93549.0,0.2137917]
[1745438090794,0.10689014,93566.0,93549.0,0.2137917]
[1745438091003,0.00299501,93565.0,93555.0,0.21377363]
[1745438091224,0.10689014,93564.0,93556.0,0.21377453]
[1745438091413,0.12448876,93564.0,93556.0,0.21377453]
[1745438091713,0.00412803,93563.0,93558.0,0.21377105]
[1745438091946,0.10689014,93562.0,93558.0,0.21377105]
[1745438092178,0.10689014,93562.0,93556.0,0.2137757]
[1745438092383,0.10689014,93562.0,93558.0,0.21377108]
[1745438092562,0.12110228,93562.0,93557.0,0.21377303]
[1745438092928,0.00309602,93561.0,93553.0,0.21378219]
[1745438093153,0.10689014,93560.0,93555.0,0.21377763]
[1745438093400,0.10689014,93560.0,93556.0,0.21377564]
[1745438093638,0.10689014,93560.0,93559.0,0.21376885]
[1745438093828,0.10689014,93560.0,93557.0,0.21377226]
[1745438094471,0.10689014,93560.0,93555.0,0.21377799]
[1745438094688,0.10889014,93560.0,93552.0,0.21378477]
[1745438094924,0.10689014,93560.0,93552.0,0.21378477]
[1745438095414,0.10889014,93560.0,93548.0,0.00584478]
[1745438095553,0.01560901,93559.0,93555.0,0.21377597]
[1745438095763,0.10889014,93560.0,93557.0,0.21377342]
[1745438095764,0.10689014,93558.0,93557.0,0.21377342]
[1745438095982,0.10689014,93558.0,93556.0,0.2137757]
[1745438096220,0.10689014,93558.0,93557.0,0.21377342]
[1745438097048,0.10689014,93558.0,93556.0,0.2137757]
[1745438097255,0.10889014,93558.0,93556.0,0.2137757]
[1745438098147,0.10689014,93558.0,93556.0,0.2137757]
[1745438098367,0.12229915,93558.0,93552.0,0.2137847]
[1745438098598,0.12229915,93558.0,93548.0,0.21379309]
[1745438098801,0.12429915,93558.0,93555.0,0.21377602]
[1745438099004,0.10889014,93558.0,93555.0,0.21377602]
[1745438099247,0.00306427,93557.0,93556.0,0.2137757]
[1745438099464,0.10995441,93557.0,93541.0,0.00584478]
[1745438099671,0.11294942,93556.0,93548.0,0.21379268]
[1745438099899,0.10995441,93556.0,93548.0,0.21379268]
[1745438100122,0.10995441,93556.0,93550.0,0.21378876]
[1745438100364,0.10995441,93556.0,93555.0,0.21377799]
[1745438100591,0.00306427,93556.0,93555.0,0.26267799]
[1745438100838,0.00306427,93556.0,93554.0,0.09992]
[1745438101060,0.002,93558.0,93554.0,0.09992]
[1745438101271,0.10689014,93555.0,93539.0,0.09992]
[1745438101481,0.37088712,93550.0,93539.0,0.09992]
[1745438101693,0.00605928,93554.0,93541.0,0.21380998]
[1745438101694,0.10689014,93549.0,93541.0,0.21380998]
[1745438101903,0.00306427,93548.0,93535.0,0.00584478]
[1745438102133,0.00306427,93548.0,93530.0,0.047]
[1745438102134,0.37088712,93545.0,93523.0,0.21384921]
[1745438102368,0.37088712,93533.0,93511.0,0.21587814]
[1745438102612,0.37088712,93521.0,93511.0,0.21587629]
[1745438102932,0.10689014,93520.0,93519.0,0.21386028]
[1745438103162,0.06438951,93544.0,93520.0,0.01069289]
[1745438103386,0.00750388,93541.0,93540.0,0.21381227]
[1745438103619,0.11439402,93541.0,93540.0,0.21381227]
[1745438103836,0.11687577,93541.0,93538.0,0.2138155]
[1745438104052,0.10689014,93540.0,93538.0,0.2138155]
[1745438104705,0.00998563,93539.0,93538.0,0.2138155]
[1745438104929,0.11687577,93539.0,93538.0,0.21381684]
[1745438105142,0.12856335,93539.0,93533.0,0.21382823]
[1745438105368,0.00998563,93538.0,93535.0,0.21382277]
[1745438105587,0.00998563,93538.0,93533.0,0.21382823]
[1745438105848,0.00998563,93538.0,93536.0,0.21382013]
[1745438106059,0.00998563,93538.0,93536.0,0.21382068]
[1745438106252,0.01318405,93537.0,93536.0,0.21382068]
[1745438106507,0.01318405,93537.0,93535.0,0.21382123]
[1745438107132,0.10789014,93539.0,93536.0,0.21382004]
[1745438107350,0.001,93537.0,93536.0,0.21382004]
[1745438107579,0.003,93538.0,93536.0,0.21382004]
[1745438108008,0.001,93537.0,93535.0,0.21382348]
[1745438108216,0.003,93538.0,93535.0,0.21382348]
[1745438108427,0.01278549,93537.0,93535.0,0.21382348]
[1745438108633,0.01278549,93537.0,93533.0,0.21382665]
[1745438108845,0.01578549,93537.0,93535.0,0.21382324]
[1745438109053,0.004,93537.0,93535.0,0.21382324]
[1745438109498,0.001,93537.0,93535.0,0.21382324]
[1745438109708,0.10689014,93539.0,93537.0,0.21381691]
[1745438110125,0.37088712,93543.0,93538.0,0.21381485]
[1745438110352,0.10689014,93542.0,93538.0,0.21381485]
[1745438110685,0.10689014,93542.0,93537.0,0.21381691]